bitfinex/quotes_BTCUSD_20240906
["timestamp","ask_amount","ask_price","bid_price","bid_amount"]
[1725657643461,2.47591377,53506.0,53493.0,0.1998]
[1725657643462,2.43171092,53505.0,53493.0,0.1998]
[1725657643713,2.47591377,53504.0,53493.0,0.1998]
[1725657643942,2.82478795,53503.0,53493.0,0.1998]
[1725657644164,2.49350672,53502.0,53493.0,0.1998]
[1725657644400,2.421995,53501.0,53493.0,0.1998]
[1725657644646,2.421995,53501.0,53494.0,0.001]
[1725657644647,0.05391877,53500.0,53494.0,0.001]
[1725657644880,2.421995,53499.0,53494.0,0.001]
[1725657645117,2.43958795,53499.0,53494.0,0.001]
[1725657645368,2.43171092,53498.0,53494.0,0.001]
[1725657645612,2.421995,53497.0,53491.0,0.392928]
[1725657646379,0.18958489,53494.0,53491.0,0.392928]
[1725657646605,0.03901187,53496.0,53491.0,0.392928]
[1725657646606,0.18958489,53493.0,53491.0,0.392928]
[1725657647114,0.00971592,53492.0,53491.0,0.392928]
[1725657647348,0.19225799,53492.0,53491.0,0.205983]
[1725657647596,0.19592543,53492.0,53491.0,0.205983]
[1725657647828,0.19592543,53492.0,53491.0,0.15138836]
[1725657648056,0.19592543,53492.0,53491.0,0.15838836]
[1725657648283,0.19592543,53492.0,53491.0,0.15138836]
[1725657648797,0.19592543,53492.0,53491.0,0.15538836]
[1725657649054,0.18958489,53493.0,53491.0,0.15538836]
[1725657649055,0.18955268,53496.0,53491.0,0.15138836]
[1725657649272,0.129,53495.0,53491.0,0.15238836]
[1725657649772,0.18955268,53499.0,53491.0,0.15238836]
[1725657649988,0.1684673,53493.0,53491.0,0.15238836]
[1725657650218,0.23725418,53505.0,53491.0,0.15238836]
[1725657650219,0.1684673,53492.0,53491.0,0.15238836]
[1725657650428,0.1684673,53493.0,53491.0,0.15238836]
[1725657650858,0.23725418,53505.0,53491.0,0.15238836]
[1725657651069,0.001,53492.0,53491.0,0.16438836]
[1725657651292,0.16845227,53493.0,53491.0,0.15138836]
[1725657651520,1.384,53492.0,53489.0,0.00163]
[1725657651734,0.05391877,53492.0,53491.0,0.003]
[1725657651955,0.05391877,53492.0,53489.0,0.00163]
[1725657652407,0.05391877,53492.0,53491.0,0.004]
[1725657652635,0.1895088,53498.0,53489.0,0.00163]
[1725657652879,0.16844538,53490.0,53483.0,0.08508854]
[1725657655049,0.16844538,53490.0,53483.0,0.08808854]
[1725657655259,0.73756572,53499.0,53484.0,0.4065]
[1725657655260,0.16842276,53491.0,53484.0,0.4065]
[1725657655497,0.92704133,53499.0,53484.0,0.4065]
[1725657655498,0.16842276,53492.0,53484.0,0.4065]
[1725657655710,0.14034003,53485.0,53484.0,0.26213138]
[1725657655926,0.16842276,53492.0,53484.0,0.26213138]
[1725657656132,0.73756572,53499.0,53484.0,0.26213138]
[1725657656133,0.14034246,53485.0,53484.0,0.26213138]
[1725657656346,0.16842276,53493.0,53484.0,0.26213138]
[1725657656555,0.14033509,53485.0,53484.0,0.26213138]
[1725657657323,0.16842276,53492.0,53484.0,0.46243138]
[1725657657541,0.16842276,53492.0,53484.0,0.46143138]
[1725657657810,0.001,53485.0,53484.0,0.47206138]
[1725657658021,0.001,53485.0,53484.0,0.46306138]
[1725657658243,0.002,53485.0,53484.0,0.47506138]
[1725657659105,0.16842276,53489.0,53484.0,0.46306138]
[1725657660769,2.59734153,53488.0,53484.0,0.00163]
[1725657660994,0.16842276,53485.0,53484.0,0.00163]
[1725657661223,0.16842276,53485.0,53484.0,0.01363]
[1725657662166,0.16842276,53485.0,53484.0,0.00163]
[1725657662400,0.16842276,53485.0,53484.0,0.01363]
[1725657662401,0.56301877,53485.0,53484.0,0.01363]
[1725657662876,2.98501377,53485.0,53484.0,0.01363]
[1725657663547,2.98401377,53485.0,53484.0,0.00163]
[1725657663815,2.99764377,53485.0,53484.0,0.00163]
[1725657664048,3.18798025,53485.0,53484.0,0.01263]
[1725657664267,3.18798025,53485.0,53484.0,0.00163]
[1725657664506,1.63734877,53485.0,53484.0,0.00163]
[1725657665873,2.02787776,53485.0,53484.0,0.00163]
[1725657666305,1.78095626,53485.0,53484.0,0.00163]
[1725657666520,2.05679121,53485.0,53484.0,0.00163]
[1725657666732,2.05579121,53485.0,53484.0,0.00163]
[1725657666944,2.06379121,53485.0,53484.0,0.00263]
[1725657667384,2.05568737,53485.0,53484.0,0.00163]
[1725657667862,1.76164877,53485.0,53484.0,0.00263]
[1725657668070,1.77995753,53485.0,53484.0,0.00163]
[1725657668298,1.79095753,53485.0,53484.0,0.00263]
[1725657668512,1.79095753,53485.0,53484.0,0.00163]
[1725657668513,1.77995753,53485.0,53484.0,0.00163]
[1725657668761,2.05558078,53485.0,53484.0,0.00163]
[1725657668946,2.05558078,53485.0,53475.0,0.00163]
[1725657668947,0.04573739,53484.0,53475.0,0.00163]
[1725657669197,0.5146,53479.0,53475.0,0.00163]
[1725657669423,0.5893188,53477.0,53458.0,0.182]
[1725657669640,0.13994008,53461.0,53458.0,0.182]
[1725657669857,0.1119536,53459.0,53457.0,0.19679585]
[1725657670304,0.13994008,53460.0,53457.0,0.19679585]
[1725657670511,2.5338907,53459.0,53457.0,0.19679585]
[1725657670718,0.1118957,53459.0,53457.0,0.19679585]
[1725657671154,0.1118957,53459.0,53457.0,0.20179585]
[1725657671382,0.1118957,53460.0,53457.0,0.005]
[1725657671594,2.421995,53459.0,53446.0,0.01]
[1725657671809,2.5338907,53459.0,53457.0,0.004]
[1725657672026,0.1118957,53459.0,53457.0,0.004]
[1725657672280,2.421995,53458.0,53457.0,0.004]
[1725657672733,2.421995,53459.0,53457.0,0.004]
[1725657673170,2.421995,53459.0,53454.0,0.182]
[1725657673608,0.001,53459.0,53454.0,0.182]
[1725657673826,2.421995,53458.0,53454.0,0.182]
[1725657674537,2.421995,53460.0,53454.0,0.182]
[1725657674782,0.001,53459.0,53454.0,0.182]
[1725657675001,0.11179635,53462.0,53454.0,0.182]
[1725657675002,2.47591377,53460.0,53454.0,0.182]
[1725657675235,0.05391877,53458.0,53454.0,0.182]
[1725657675501,2.179,53457.0,53454.0,0.182]
[1725657675732,1.139,53456.0,53454.0,0.182]
[1725657675952,1.42,53457.0,53454.0,0.182]
[1725657676672,0.11179635,53465.0,53455.0,0.4062]
[1725657676919,0.11179635,53467.0,53456.0,0.5882]
[1725657677157,0.11179635,53468.0,53456.0,0.5882]
[1725657677387,0.13974544,53470.0,53456.0,0.5882]
[1725657677388,1.809,53467.0,53456.0,0.5882]
[1725657677608,0.361,53469.0,53456.0,0.5882]
[1725657677861,0.11179635,53470.0,53456.0,0.5882]
[1725657677862,0.249,53468.0,53456.0,0.5882]
[1725657678079,0.11163235,53470.0,53456.0,0.5882]
[1725657678080,0.001,53465.0,53456.0,0.5882]
[1725657678545,0.001,53465.0,53457.0,0.4062]
[1725657678781,0.001,53465.0,53454.0,0.01199997]
[1725657679037,0.001,53465.0,53459.0,0.5839]
[1725657679450,0.001,53465.0,53459.0,0.58589997]
[1725657679652,0.11163235,53474.0,53460.0,0.3993]
[1725657679881,0.11163235,53471.0,53460.0,0.3993]
[1725657680090,0.11163235,53471.0,53460.0,0.40129997]
[1725657680425,0.11163235,53471.0,53461.0,0.1846]
[1725657680680,0.001,53465.0,53461.0,0.1846]
[1725657680871,0.11163235,53472.0,53461.0,0.1846]
[1725657681148,0.428,53471.0,53461.0,0.1846]
[1725657681382,0.43,53471.0,53461.0,0.1846]
[1725657681623,0.11163235,53472.0,53461.0,0.1846]
[1725657681844,0.429,53471.0,53461.0,0.1846]
[1725657682054,0.001,53471.0,53461.0,0.1836]
[1725657683342,0.11161735,53475.0,53461.0,0.1836]
[1725657683553,0.224,53474.0,53461.0,0.1836]
[1725657683795,0.224,53474.0,53462.0,0.4135]
[1725657683796,0.003,53471.0,53462.0,0.4135]
[1725657684276,0.004,53471.0,53462.0,0.4135]
[1725657684513,0.003,53471.0,53462.0,0.4135]
[1725657684949,0.11161735,53477.0,53462.0,0.4135]
[1725657685162,0.11161735,53477.0,53461.0,0.01]
[1725657685163,0.11161735,53477.0,53463.0,0.1923]
[1725657685382,0.006,53475.0,53465.0,0.1923]
[1725657685605,0.006,53475.0,53468.0,0.4135]
[1725657685827,0.11161735,53480.0,53470.0,0.6058]
[1725657686048,0.01363,53485.0,53475.0,0.6058]
[1725657686049,0.11161735,53484.0,53475.0,0.6058]
[1725657686266,0.12524735,53485.0,53476.0,0.6048]
[1725657686475,0.01363,53485.0,53476.0,0.50894923]
[1725657686690,0.01363,53485.0,53476.0,0.50594923]
[1725657686910,0.01363,53485.0,53476.0,0.50494923]
[1725657687658,0.01463,53485.0,53477.0,0.00199997]
[1725657688575,0.01463,53485.0,53480.0,0.00199997]
[1725657688797,0.002,53484.0,53482.0,0.01]
[1725657689017,0.002,53484.0,53483.0,0.1923]
[1725657689452,0.001,53485.0,53483.0,0.2023]
[1725657689692,0.002,53485.0,53483.0,0.2023]
[1725657689920,0.001,53485.0,53483.0,0.2023]
[1725657690147,0.002,53485.0,53484.0,0.6058]
[1725657690601,0.57107269,53505.0,53484.0,0.6058]
[1725657690602,0.11171513,53498.0,53488.0,0.01199997]
[1725657690830,0.18716741,53508.0,53502.0,0.6058]
[1725657690831,0.11171513,53505.0,53502.0,0.6058]
[1725657691056,0.11171513,53507.0,53502.0,0.6058]
[1725657691277,0.13130985,53508.0,53502.0,0.6058]
[1725657691521,0.01959472,53508.0,53502.0,0.6048]
[1725657691962,0.01959472,53508.0,53502.0,0.1923]
[1725657692192,0.01959472,53508.0,53502.0,0.1953]
[1725657692645,0.01959472,53508.0,53502.0,0.1923]
[1725657692869,0.01959472,53508.0,53507.0,0.19429997]
[1725657693109,0.01959472,53508.0,53507.0,0.19329997]
[1725657693605,0.02059472,53508.0,53507.0,0.19329997]
[1725657693855,0.01959472,53508.0,53507.0,0.19329997]
[1725657694347,0.001,53508.0,53507.0,0.19329997]
[1725657694583,0.000814,53510.0,53509.0,0.00099997]
[1725657694866,0.000814,53510.0,53509.0,0.60579997]
[1725657695347,0.03010825,53510.0,53509.0,0.60579997]
[1725657695810,0.03010825,53510.0,53509.0,0.61079997]
[1725657696499,0.03110825,53510.0,53509.0,0.60679997]
[1725657696739,0.03010825,53510.0,53509.0,0.61179997]
[1725657697218,0.03110825,53510.0,53509.0,0.61279997]
[1725657697450,0.000814,53521.0,53510.0,0.03049175]
[1725657697674,0.000814,53521.0,53510.0,0.22279175]
[1725657697896,0.000814,53521.0,53512.0,0.1923]
[1725657698855,0.002814,53521.0,53512.0,0.1923]
[1725657699318,0.000814,53521.0,53512.0,0.1923]
[1725657699541,0.002814,53521.0,53513.0,0.389]
[1725657700918,0.000814,53521.0,53513.0,0.389]
[1725657701142,0.000814,53521.0,53514.0,0.1938]
[1725657701392,0.002814,53521.0,53514.0,0.1938]
[1725657701853,0.000814,53521.0,53514.0,0.1938]
[1725657702103,0.002814,53521.0,53514.0,0.1938]
[1725657702340,0.003814,53521.0,53514.0,0.1938]
[1725657702568,0.000814,53521.0,53514.0,0.1938]
[1725657702791,0.002814,53521.0,53514.0,0.1958]
[1725657703004,0.002814,53521.0,53514.0,0.1938]
[1725657703428,0.003814,53521.0,53514.0,0.1968]
[1725657703652,0.003814,53521.0,53514.0,0.1938]
[1725657704084,0.002814,53521.0,53514.0,0.1968]
[1725657704295,0.186863,53515.0,53514.0,0.1968]
[1725657705158,0.186863,53515.0,53514.0,0.1938]
[1725657705821,0.186863,53515.0,53514.0,0.1968]
[1725657706037,0.186863,53515.0,53514.0,0.2038]
[1725657706513,0.186863,53515.0,53514.0,0.2008]
[1725657706746,0.187863,53515.0,53514.0,0.2038]
[1725657706956,0.187863,53515.0,53514.0,0.2008]
[1725657707169,0.187863,53515.0,53514.0,0.1938]
[1725657707620,0.187863,53515.0,53514.0,0.2008]
[1725657707852,0.187863,53515.0,53514.0,0.6299]
[1725657708072,0.21714626,53515.0,53514.0,0.6299]
[1725657708293,0.11835808,53534.0,53516.0,0.01]
[1725657708508,0.3754,53535.0,53517.0,0.63421]
[1725657709411,0.3754,53535.0,53517.0,0.5903]
[1725657709857,0.3774,53535.0,53517.0,0.5903]
[1725657710582,0.10506871,53535.0,53517.0,0.5903]
[1725657711057,0.10706871,53535.0,53517.0,0.5913]
[1725657711270,0.186853,53518.0,53517.0,0.5913]
[1725657712146,0.186853,53518.0,53517.0,0.5903]
[1725657712364,0.186853,53518.0,53517.0,0.5963]
[1725657712579,0.187853,53518.0,53517.0,0.5963]
[1725657713695,0.187853,53518.0,53517.0,0.53290082]
[1725657714405,0.187853,53518.0,53517.0,0.016]
[1725657714897,0.2171382,53518.0,53517.0,0.016]
[1725657715144,0.187853,53518.0,53517.0,0.016]
[1725657715363,0.4098,53523.0,53510.0,0.43959175]
[1725657715620,0.001,53518.0,53517.0,0.007]
[1725657715856,0.001,53518.0,53510.0,0.42959175]
[1725657716074,0.002,53518.0,53517.0,0.007]
[1725657716526,0.4098,53523.0,53511.0,0.01]
[1725657716752,0.832,53522.0,53511.0,0.01]
[1725657717489,0.001,53518.0,53511.0,0.01]
[1725657717772,0.001,53518.0,53512.0,0.01]
[1725657718014,0.02928581,53526.0,53512.0,0.01]
[1725657718237,0.001,53518.0,53517.0,0.005]
[1725657718670,0.02928581,53526.0,53514.0,0.3991]
[1725657718871,0.001,53518.0,53514.0,0.3991]
[1725657719536,0.002,53518.0,53517.0,0.005]
[1725657720404,0.02928581,53526.0,53517.0,0.004]
[1725657720839,0.478,53530.0,53517.0,0.004]
[1725657721052,0.1976,53532.0,53517.0,0.004]
[1725657721053,0.0292851,53524.0,53517.0,0.004]
[1725657721268,0.0292851,53524.0,53514.0,0.3991]
[1725657721501,0.0292851,53524.0,53514.0,0.4041]
[1725657721502,0.001,53518.0,53514.0,0.4041]
[1725657721930,0.0292851,53524.0,53514.0,0.3991]
[1725657722158,0.003,53526.0,53514.0,0.3991]
[1725657722856,0.003,53526.0,53514.0,0.4041]
[1725657722857,0.001,53518.0,53514.0,0.4041]
[1725657723098,0.0535021,53526.0,53514.0,0.3991]
[1725657723327,0.4017,53525.0,53514.0,0.3991]
[1725657723559,0.003,53524.0,53514.0,0.4031]
[1725657724009,0.003,53524.0,53514.0,0.004]
[1725657724010,0.1951,53524.0,53514.0,0.004]
[1725657724244,1.631,53523.0,53514.0,0.004]
[1725657724481,0.817,53523.0,53514.0,0.004]
[1725657724749,0.874,53523.0,53512.0,0.011628]
[1725657724976,0.874,53523.0,53514.0,0.005]
[1725657724977,0.001,53518.0,53514.0,0.005]
[1725657725571,0.1951,53524.0,53512.0,0.011628]
[1725657725661,0.029287,53518.0,53514.0,0.005]
[1725657725905,0.029287,53518.0,53512.0,0.011628]
[1725657726357,0.029287,53518.0,53514.0,0.005]
[1725657726358,0.030287,53518.0,53514.0,0.005]
[1725657727240,0.030287,53518.0,53514.0,0.012]
[1725657727698,0.1951,53524.0,53514.0,0.007]
[1725657727933,0.001,53518.0,53514.0,0.007]
[1725657728159,0.1951,53524.0,53514.0,0.007]
[1725657728397,1.335,53523.0,53514.0,0.007]
[1725657728622,0.001,53518.0,53514.0,0.012]
[1725657728844,0.001,53518.0,53509.0,0.1904]
[1725657728845,0.001,53518.0,53509.0,0.13442752]
[1725657729080,0.001,53518.0,53509.0,0.0610327]
[1725657729316,0.1951,53524.0,53509.0,0.0610327]
[1725657729569,1.355,53523.0,53514.0,0.005]
[1725657729817,0.001,53523.0,53514.0,0.005]
[1725657731199,0.001,53523.0,53514.0,0.006]
[1725657731433,0.1951,53524.0,53514.0,0.001]
[1725657731658,0.001,53518.0,53514.0,0.001]
[1725657731922,0.6087,53517.0,53514.0,0.001]
[1725657732152,0.6087,53517.0,53514.0,0.002]
[1725657732618,0.6087,53517.0,53514.0,0.001]
[1725657732850,0.6087,53517.0,53514.0,0.002]
[1725657733070,0.6087,53517.0,53514.0,0.001]
[1725657734022,0.6087,53517.0,53509.0,0.001628]
[1725657734462,0.6097,53517.0,53509.0,0.001628]
[1725657735162,0.6107,53517.0,53514.0,0.007]
[1725657735385,0.08363531,53516.0,53514.0,0.007]
[1725657735599,0.002,53517.0,53513.0,0.3995]
[1725657735600,0.08463531,53517.0,53513.0,0.3995]
[1725657735841,0.08363531,53517.0,53513.0,0.3995]
[1725657736065,0.002,53517.0,53513.0,0.3995]
[1725657736306,0.001,53517.0,53513.0,0.3995]
[1725657736527,0.08363531,53514.0,53513.0,0.3995]
[1725657737468,0.11151374,53515.0,53513.0,0.3995]
[1725657737698,0.11151374,53514.0,53513.0,0.3995]
[1725657738138,0.001,53514.0,53513.0,0.3995]
[1725657738390,0.11251374,53514.0,53513.0,0.3995]
[1725657738612,0.16867689,53515.0,53513.0,0.4035]
[1725657738849,0.16967689,53515.0,53513.0,0.4035]
[1725657739072,0.13939218,53514.0,53513.0,0.3995]
[1725657739289,0.001,53514.0,53513.0,0.4075]
[1725657739504,0.002,53514.0,53513.0,0.4075]
[1725657740400,0.17043123,53514.0,53513.0,0.4075]
[1725657740619,0.16943123,53514.0,53513.0,0.4075]
[1725657741109,0.16843123,53514.0,53513.0,0.3995]
[1725657741329,0.03028471,53515.0,53513.0,0.3995]
[1725657741547,0.001,53514.0,53513.0,0.3995]
[1725657741763,0.001,53514.0,53513.0,0.4045]
[1725657742203,0.001,53514.0,53513.0,0.3995]
[1725657742423,0.18948514,53515.0,53513.0,0.3995]
[1725657742676,0.002,53515.0,53513.0,0.007]
[1725657742913,0.1988,53514.0,53513.0,0.007]
[1725657743142,0.1988,53514.0,53509.0,0.001628]
[1725657743143,0.2493021,53514.0,53509.0,0.001628]
[1725657743830,0.18959182,53514.0,53509.0,0.001628]
[1725657744274,0.19059182,53514.0,53509.0,0.001628]
[1725657744493,0.002,53514.0,53509.0,0.001628]
[1725657744758,0.19058885,53514.0,53509.0,0.001628]
[1725657744980,0.18958885,53514.0,53509.0,0.001628]
[1725657745228,0.02928775,53513.0,53509.0,0.001628]
[1725657745455,0.16847905,53511.0,53510.0,0.5947]
[1725657745684,0.16847905,53512.0,53510.0,0.5947]
[1725657745921,0.1977668,53513.0,53510.0,0.5947]
[1725657746144,0.1977668,53513.0,53510.0,0.6563328]
[1725657746145,0.02928775,53513.0,53510.0,0.6563328]
[1725657746358,0.02928775,53513.0,53512.0,0.4062]
[1725657746589,0.02928775,53513.0,53512.0,0.6047]
[1725657747491,0.02928775,53513.0,53512.0,0.6147]
[1725657747719,0.02928775,53513.0,53512.0,0.6137]
[1725657748194,0.03028775,53513.0,53512.0,0.6157]
[1725657748669,0.03128775,53513.0,53512.0,0.6267]
[1725657754576,0.19973544,53513.0,53512.0,0.6267]
[1725657756177,0.03128775,53513.0,53512.0,0.6267]
[1725657756435,0.19973544,53513.0,53512.0,0.6267]
[1725657757832,0.03128775,53513.0,53512.0,0.6067]
[1725657760780,0.03128775,53513.0,53512.0,0.6267]
[1725657760781,0.17050723,53513.0,53512.0,0.6267]
[1725657762384,0.19980356,53513.0,53512.0,0.6267]
[1725657762604,0.17050723,53513.0,53512.0,0.6267]
[1725657763931,0.17050723,53513.0,53512.0,0.6897328]
[1725657764215,0.14240046,53513.0,53512.0,0.6897328]
[1725657764438,0.08623347,53513.0,53512.0,0.6897328]
[1725657764659,0.002,53513.0,53512.0,0.6897328]
[1725657765122,0.001,53513.0,53512.0,0.6877328]
[1725657765768,0.000814,53514.0,53512.0,0.6767328]
[1725657766024,0.000814,53514.0,53513.0,0.02]
[1725657766483,0.000814,53514.0,53513.0,0.019]
[1725657766958,0.001814,53514.0,53513.0,0.019]
[1725657767619,0.001814,53514.0,53513.0,0.033]
[1725657767841,0.001814,53514.0,53513.0,0.047]
[1725657768084,0.03010661,53514.0,53513.0,0.033]
[1725657768308,0.03010661,53514.0,53513.0,0.047]
[1725657768981,0.03010661,53514.0,53513.0,0.033]
[1725657769453,0.03010661,53514.0,53513.0,0.047]
[1725657769865,0.03010661,53514.0,53513.0,0.019]
[1725657770122,0.03010661,53514.0,53513.0,0.033]
[1725657770564,0.03110661,53514.0,53513.0,0.045]
[1725657771032,0.03110661,53514.0,53513.0,0.031]
[1725657771254,0.11523463,53514.0,53513.0,0.031]
[1725657771702,0.08594202,53514.0,53513.0,0.031]
[1725657771961,0.08494202,53514.0,53513.0,0.019]
[1725657772400,0.08494202,53514.0,53513.0,0.033]
[1725657772617,0.000814,53514.0,53513.0,0.033]
[1725657772832,0.08494202,53514.0,53513.0,0.033]
[1725657773284,0.08594202,53514.0,53513.0,0.046]
[1725657773525,0.001814,53514.0,53513.0,0.046]
[1725657773740,0.08593186,53514.0,53513.0,0.046]
[1725657773955,0.0859294,53514.0,53513.0,0.046]
[1725657774395,0.001814,53514.0,53513.0,0.046]
[1725657774633,0.11396822,53514.0,53513.0,0.046]
[1725657775310,0.11396822,53514.0,53513.0,0.037]
[1725657775504,0.11396822,53514.0,53513.0,0.027]
[1725657775987,0.11396822,53514.0,53513.0,0.046]
[1725657776207,0.11396822,53514.0,53513.0,0.036]
[1725657776431,0.11396822,53514.0,53513.0,0.027]
[1725657777408,0.001814,53514.0,53513.0,0.027]
[1725657778087,0.03111045,53514.0,53513.0,0.027]
[1725657778559,0.03111045,53514.0,53513.0,0.013]
[1725657778788,0.03111045,53514.0,53513.0,0.02]
[1725657779239,0.1993492,53514.0,53513.0,0.013]
[1725657779685,0.19937433,53514.0,53513.0,0.013]
[1725657779915,0.04411045,53514.0,53513.0,0.013]
[1725657780144,0.21137919,53514.0,53512.0,0.001628]
[1725657780361,0.21237919,53514.0,53513.0,0.011]
[1725657780616,0.04411045,53514.0,53512.0,0.001628]
[1725657781073,0.015814,53514.0,53513.0,0.011]
[1725657781306,0.013814,53514.0,53513.0,0.5889]
[1725657781579,0.11398472,53514.0,53513.0,0.6691156]
[1725657781800,0.001814,53514.0,53513.0,0.6591156]
[1725657782022,0.002814,53514.0,53513.0,0.6661156]
[1725657782450,0.002814,53514.0,53513.0,0.6591156]
[1725657782451,0.001814,53514.0,53513.0,0.6591156]
[1725657782670,0.002814,53514.0,53513.0,0.6681156]
[1725657783125,0.08411157,53523.0,53519.0,0.011]
[1725657783357,0.08411157,53521.0,53519.0,0.011]
[1725657783807,0.08411157,53520.0,53519.0,0.01]
[1725657784033,0.14018595,53529.0,53519.0,0.009]
[1725657784512,0.001,53523.0,53519.0,0.018]
[1725657784767,0.14018595,53529.0,53520.0,0.002]
[1725657785197,0.14018595,53529.0,53521.0,0.3995]
[1725657785631,0.14018595,53529.0,53521.0,0.43835]
[1725657786544,0.14118595,53529.0,53519.0,0.016]
[1725657786757,0.14018881,53527.0,53519.0,0.007]
[1725657787259,0.17102545,53527.0,53520.0,0.008]
[1725657787492,0.14018881,53526.0,53519.0,0.007]
[1725657787730,0.14018881,53526.0,53519.0,0.015]
[1725657787955,0.14018881,53526.0,53519.0,0.007]
[1725657788425,0.14274118,53527.0,53519.0,0.02]
[1725657788877,0.14018881,53526.0,53519.0,0.012]
[1725657789099,0.5487,53525.0,53519.0,0.012]
[1725657789319,0.5487,53525.0,53519.0,0.007]
[1725657789544,0.14018881,53526.0,53519.0,0.007]
[1725657789794,0.14018881,53527.0,53519.0,0.012]
[1725657790018,0.001,53526.0,53519.0,0.026]
[1725657790243,0.001,53526.0,53519.0,0.021]
[1725657790467,0.001,53526.0,53520.0,0.5902]
[1725657790468,0.001,53525.0,53520.0,0.5902]
[1725657791130,0.002,53525.0,53520.0,0.5902]
[1725657791575,0.001,53525.0,53520.0,0.5902]
[1725657791798,0.002,53525.0,53520.0,0.6042]
[1725657792700,0.002,53525.0,53520.0,0.6112]
[1725657792925,0.003,53525.0,53520.0,0.6112]
[1725657793148,0.14029694,53522.0,53520.0,0.6112]
[1725657793815,0.003,53525.0,53524.0,0.002]
[1725657794033,0.001814,53525.0,53524.0,0.002]
[1725657794481,0.001814,53525.0,53524.0,0.001]
[1725657794722,0.001814,53525.0,53520.0,0.6182]
[1725657794723,0.000814,53525.0,53523.0,0.007]
[1725657794982,0.000814,53525.0,53524.0,0.006]
[1725657795205,0.000814,53525.0,53524.0,0.001]
[1725657795416,0.000814,53525.0,53524.0,0.002]
[1725657795843,0.001814,53525.0,53524.0,0.009]
[1725657796512,0.001814,53525.0,53524.0,0.008]
[1725657797165,0.002814,53525.0,53524.0,0.022]
[1725657797408,0.03209363,53525.0,53524.0,0.022]
[1725657797634,0.03209363,53525.0,53524.0,0.023]
[1725657797858,0.14028724,53525.0,53524.0,0.023]
[1725657798089,0.14028724,53525.0,53524.0,0.6132]
[1725657799595,0.14028724,53526.0,53525.0,0.001]
[1725657799840,0.03017712,53538.0,53525.0,0.001]
[1725657800057,0.14027895,53529.0,53528.0,0.001]
[1725657800275,0.14027895,53529.0,53527.0,0.001]
[1725657800968,0.14027895,53529.0,53525.0,0.014]
[1725657801190,0.02927757,53535.0,53525.0,0.02]
[1725657801191,0.14027895,53531.0,53525.0,0.02]
[1725657801413,0.001,53529.0,53528.0,0.014]
[1725657801628,0.02927824,53529.0,53527.0,0.005]
[1725657801846,0.14027895,53532.0,53527.0,0.005]
[1725657802293,0.14027895,53532.0,53525.0,0.08162]
[1725657802581,0.14027895,53532.0,53526.0,0.067182]
[1725657803466,0.1583,53540.0,53526.0,0.067182]
[1725657803467,0.14027895,53533.0,53526.0,0.067182]
[1725657803679,0.14027895,53533.0,53527.0,0.014]
[1725657803896,0.14027895,53533.0,53525.0,0.024]
[1725657804115,0.14027895,53533.0,53525.0,0.02]
[1725657804334,0.14027895,53533.0,53526.0,0.012]
[1725657804995,0.14027895,53533.0,53527.0,0.011]
[1725657805236,0.14027895,53534.0,53525.0,0.02]
[1725657805478,0.14027895,53534.0,53526.0,0.06102]
[1725657805723,0.186821,53527.0,53526.0,0.06102]
[1725657806385,0.000814,53532.0,53525.0,0.031]
[1725657806386,0.186825,53526.0,53525.0,0.031]
[1725657806608,0.186825,53526.0,53525.0,0.02]
[1725657807486,0.21610292,53526.0,53525.0,0.034]
[1725657807921,0.186825,53526.0,53525.0,0.034]
[1725657808370,0.186825,53526.0,53525.0,0.047]
[1725657811131,0.21610278,53526.0,53525.0,0.047]
[1725657812707,0.186825,53526.0,53525.0,0.047]
[1725657817101,0.186825,53526.0,53525.0,0.6272]
[1725657819150,0.186825,53526.0,53525.0,0.62883]
[1725657821152,0.186825,53526.0,53525.0,0.61583]
[1725657821384,0.186825,53526.0,53525.0,0.663413]
[1725657821648,0.186825,53526.0,53525.0,0.677413]
[1725657821872,0.186825,53526.0,53525.0,0.691413]
[1725657822059,0.560475,53526.0,53525.0,0.691413]
[1725657822307,0.934125,53526.0,53525.0,0.691413]
[1725657823001,0.560475,53526.0,53525.0,0.677413]
[1725657823450,0.560475,53526.0,53525.0,0.691413]
[1725657826250,0.000815,53527.0,53526.0,0.5912]
[1725657826475,0.187636,53527.0,53526.0,0.6594413]
[1725657827148,0.2169108,53527.0,53526.0,0.6594413]
[1725657827821,0.2169108,53527.0,53526.0,0.6874413]
[1725657828541,0.2169108,53527.0,53525.0,0.00163]
[1725657828542,0.5705898,53527.0,53525.0,0.00163]
[1725657828772,0.39080081,53527.0,53525.0,7.683e-05]
[1725657828999,0.0300898,53527.0,53525.0,7.683e-05]
[1725657829487,0.1701497,53527.0,53525.0,7.683e-05]
[1725657829705,0.0300898,53527.0,53526.0,0.014]
[1725657829926,0.0300898,53527.0,53526.0,0.028]
[1725657830142,0.0300898,53527.0,53525.0,7.683e-05]
[1725657830614,0.0300898,53527.0,53525.0,0.02507683]
[1725657830845,0.0300898,53527.0,53525.0,0.01107683]
[1725657831069,0.0300898,53527.0,53526.0,0.024]
[1725657831296,0.0300898,53527.0,53526.0,0.022]
[1725657831297,0.000815,53527.0,53526.0,0.022]
[1725657831530,0.000815,53527.0,53526.0,0.4112]
[1725657832465,0.000815,53527.0,53526.0,0.3992]
[1725657832690,0.001815,53527.0,53526.0,0.3992]
[1725657833395,0.001815,53527.0,53526.0,0.4132]
[1725657833621,0.002815,53527.0,53526.0,0.4242]
[1725657834076,0.000815,53527.0,53526.0,0.3992]